bitfinex-derivatives/quotes_ETHF0:USTF0_20240917
["timestamp","ask_amount","ask_price","bid_price","bid_amount"]
[1726597083659,2.75687116,2365.2,2365.0,3.3]
[1726597083846,2.75687116,2365.2,2365.1,0.4227]
[1726597084041,3.30834056,2365.4,2365.3,0.42267]
[1726597084246,3.30834056,2365.4,2365.0,3.3]
[1726597084452,2.75640394,2365.1,2365.0,3.72272]
[1726597085853,2.75647769,2365.2,2365.0,3.3]
[1726597086159,3.30834056,2365.4,2365.3,0.42267]
[1726597086557,3.73684056,2365.4,2365.3,0.42267]
[1726597087450,0.4285,2365.4,2365.2,0.42267]
[1726597087644,0.4285,2365.4,2365.0,3.3]
[1726597087847,2.75555163,2365.2,2365.1,0.4227]
[1726597088352,2.75555163,2365.2,2365.1,0.8209]
[1726597088957,2.75555163,2365.4,2365.3,0.42267]
[1726597089154,0.4226,2365.5,2365.4,0.42265]
[1726597089451,3.70854056,2365.8,2365.7,0.4226]
[1726597089646,4.09724056,2365.9,2365.8,0.42258]
[1726597090558,0.7889,2365.9,2365.8,0.42258]
[1726597090758,4.09724056,2365.9,2365.8,0.42258]
[1726597091056,0.7889,2365.9,2365.8,0.42258]
[1726597091254,1.21146,2365.9,2365.6,0.42262]
[1726597091561,1.21146,2365.9,2365.8,0.42258]
[1726597091562,4.09724056,2365.9,2365.8,0.42258]
[1726597091952,4.09724056,2365.9,2365.7,0.42259]
[1726597092458,4.09724056,2365.9,2365.8,0.42258]
[1726597092659,4.09724056,2365.9,2365.7,0.42259]
[1726597092848,4.09724056,2365.9,2365.8,0.42258]
[1726597094062,4.51981056,2365.9,2365.7,0.4226]
[1726597094756,4.51981056,2365.9,2365.8,0.42258]
[1726597095158,4.09724056,2365.9,2365.8,0.42258]
[1726597096946,4.09724056,2365.9,2365.3,1.2086]
[1726597097260,4.09724056,2365.9,2365.2,4.26449]
[1726597097261,0.42262,2365.6,2365.5,0.42262]
[1726597097559,0.42264,2365.5,2365.4,0.42264]
[1726597097760,1.64164,2365.5,2365.4,1.041164]
[1726597098155,1.64164,2365.5,2365.4,1.04116195]
[1726597098156,1.219,2365.5,2365.4,1.04116195]
[1726597098659,1.64163,2365.5,2365.4,1.04116195]
[1726597099050,1.219,2365.5,2365.4,1.04116195]
[1726597101856,1.219,2365.5,2365.4,0.42264]
[1726597102055,1.219,2365.5,2365.4,1.04115202]
[1726597102251,1.64163,2365.5,2365.4,1.0411704]
[1726597102664,1.64163,2365.5,2365.4,1.65969262]
[1726597104458,3.30915174,2366.0,2365.9,0.42256]
[1726597104656,4.53605174,2366.1,2366.0,0.42254]
[1726597105565,4.53605174,2366.1,2365.9,1.0564]
[1726597105566,3.30915174,2366.2,2366.1,0.42253]
[1726597106067,3.73166174,2366.2,2366.0,0.42254]
[1726597106267,3.73166174,2366.2,2365.6,0.4082]
[1726597106268,0.42256,2366.0,2365.6,0.4082]
[1726597106569,2.75626421,2365.8,2365.7,1.04104983]
[1726597107368,2.75626421,2365.8,2365.7,1.25093644]
[1726597108871,2.75626421,2365.8,2365.7,0.63248661]
[1726597109072,2.75626421,2365.8,2365.7,1.62196538]
[1726597109275,2.75626421,2365.8,2365.7,1.25091084]
[1726597109474,2.75626421,2365.8,2365.7,2.30741084]
[1726597109973,2.2050068,2365.8,2365.7,3.29690914]
[1726597110864,2.2050068,2365.8,2365.7,2.09752423]
[1726597110865,2.75626421,2365.8,2365.7,2.09752423]
[1726597111468,2.75626421,2365.9,2365.8,0.42258]
[1726597111772,2.75626421,2365.9,2365.8,2.09746423]
[1726597112171,2.75626421,2366.0,2365.9,2.53538]
[1726597112374,2.75626421,2366.1,2366.0,1.47891]
[1726597112564,3.2078,2366.3,2366.1,1.47885]
[1726597112565,2.75626421,2366.2,2366.1,1.47885]
[1726597112766,2.75626421,2366.2,2366.1,1.04095423]
[1726597113769,2.75626421,2366.2,2366.1,2.09727423]
[1726597113963,2.75626421,2366.2,2366.1,0.42253]
[1726597115365,3.2078,2366.3,2366.2,0.42251]
[1726597115667,5.96023018,2366.3,2366.2,0.42251]
[1726597115869,5.96020323,2366.3,2366.2,0.42251]
[1726597117174,3.2078,2366.3,2366.2,0.42251]
[1726597117677,3.63029,2366.3,2366.2,0.42251]
[1726597117876,3.2078,2366.3,2366.2,0.42251]
[1726597118077,6.51695174,2366.3,2366.2,0.42251]
[1726597118380,3.2078,2366.3,2366.2,0.42251]
[1726597120774,3.2078,2366.3,2365.9,1.05641]
[1726597120975,2.20050558,2366.0,2365.9,0.42256]
[1726597121276,2.20050558,2366.0,2365.8,1.05642]
[1726597121277,0.42251,2366.2,2366.1,0.42252]
[1726597121473,6.51695174,2366.3,2366.1,0.42252]
[1726597121674,0.42251,2366.2,2366.1,0.42252]
[1726597121980,6.93945174,2366.3,2366.2,0.42251]
[1726597122175,0.42251,2366.2,2366.1,0.42251]
[1726597122674,0.42251,2366.2,2365.8,1.05642]
[1726597122675,6.93945174,2366.3,2366.2,0.42251]
[1726597123277,3.6303,2366.3,2366.2,0.42251]
[1726597123967,0.42253,2366.1,2366.0,0.42253]
[1726597124169,0.42255,2366.0,2365.9,0.42255]
[1726597124482,0.82705,2366.0,2365.6,4.179]
[1726597124678,2.74997376,2365.8,2365.7,0.4226]
[1726597124976,2.19993535,2365.8,2365.7,0.4226]
[1726597125176,2.74997376,2365.9,2365.6,0.4226]
[1726597125474,2.19987264,2365.7,2365.6,0.4226]
[1726597125678,2.19987264,2365.7,2365.2,4.179]
[1726597125679,5.49987264,2365.7,2365.2,4.179]
[1726597125867,2.74997376,2365.8,2365.3,0.42267]
[1726597125868,1.64980558,2365.4,2365.3,0.42267]
[1726597126267,1.64980558,2365.4,2365.2,3.3]
[1726597126268,2.19987264,2365.5,2365.4,0.42265]
[1726597131887,3.17261376,2365.5,2365.3,0.42266]
[1726597132086,2.20092788,2365.4,2365.3,0.42266]
[1726597134285,2.59322788,2365.4,2365.3,0.42266]
[1726597136185,3.14227376,2365.4,2365.3,0.42267]
[1726597136579,3.14227376,2365.4,2365.0,4.6712]
[1726597136580,3.14227376,2365.4,2365.0,3.6144]
[1726597136792,2.74997376,2365.2,2365.0,0.42272]
[1726597137084,2.74997376,2365.1,2364.8,0.42275]
[1726597137286,2.20115263,2364.9,2364.8,0.42276]
[1726597137490,2.74997376,2364.9,2364.8,0.42276]
[1726597137780,3.16907376,2364.9,2364.8,0.42276]
[1726597138380,0.4191,2364.9,2364.8,0.42276]
[1726597139289,0.4191,2364.9,2364.7,0.42276]
[1726597139484,2.61754543,2364.9,2364.6,3.3]
[1726597139686,1.64894578,2364.7,2364.6,3.72279]
[1726597140191,1.64894578,2364.7,2364.6,0.42279]
[1726597140985,2.07424578,2364.7,2364.6,0.42279]
[1726597141184,2.07424578,2364.7,2364.1,3.2078]
[1726597141185,0.4228,2364.6,2364.1,3.2078]
[1726597141390,1.64866243,2364.4,2364.1,3.2078]
[1726597141593,1.64866243,2364.4,2364.3,0.42285]
[1726597141782,1.64866243,2364.4,2364.1,6.71655192]
[1726597141995,2.07396243,2364.3,2364.1,0.42287]
[1726597142186,2.07396243,2364.3,2364.2,0.42287]
[1726597142187,0.4253,2364.3,2364.2,0.42287]
[1726597143982,2.04236243,2364.5,2364.3,0.42283]
[1726597144188,2.04236243,2364.5,2364.4,0.42283]
[1726597144384,0.3937,2364.5,2364.3,0.42284]
[1726597144587,5.25016243,2364.5,2364.2,0.42285]
[1726597144986,2.46519243,2364.5,2364.0,0.399]
[1726597145191,2.46519243,2364.5,2363.9,4.131]
[1726597145192,3.3,2364.3,2363.9,0.42292]
[1726597145390,3.2078,2364.0,2363.9,0.42292]
[1726597145581,3.2078,2364.0,2363.5,1.2458]
[1726597145582,6.5078,2364.0,2363.5,0.8468]
[1726597145783,0.4047,2363.9,2363.5,0.4186]
[1726597145986,0.4047,2363.9,2363.8,0.42294]
[1726597146189,0.4047,2363.9,2363.8,3.72294]
[1726597149704,0.4047,2363.9,2363.8,0.42294]
[1726597152895,3.2078,2364.0,2363.9,0.42292]
[1726597153305,3.2078,2364.0,2363.8,0.42292]
[1726597153503,0.4237,2363.9,2363.6,3.3]
[1726597153705,0.3874,2363.8,2363.7,0.42294]
[1726597153895,0.3874,2363.8,2362.6,6.02029]
[1726597153896,1.05739,2363.7,2362.6,6.02029]
[1726597154098,1.05739,2363.7,2362.9,0.4231]
[1726597154099,3.2078,2363.0,2362.9,0.4231]
[1726597154301,3.2078,2363.0,2362.6,1.11949367]
[1726597154498,3.2078,2363.0,2362.9,0.4231]
[1726597155401,3.2078,2363.0,2362.6,1.11949367]
[1726597155599,3.2078,2363.0,2362.9,0.4231]
[1726597156700,3.2078,2363.0,2362.6,0.7834]
[1726597156903,3.63089,2363.0,2362.6,0.7834]
[1726597157099,3.63089,2363.0,2362.8,0.42311]
[1726597158607,3.63089,2363.0,2362.7,0.42312]
[1726597158810,0.4231,2362.9,2362.7,0.42312]
[1726597158999,6.5078,2363.0,2362.8,0.42312]
[1726597159000,6.93089,2363.0,2362.8,0.42312]
[1726597159812,3.2078,2363.0,2362.9,0.4231]
[1726597160206,3.63088,2363.0,2362.9,0.4231]
[1726597160509,3.63088,2363.0,2362.6,1.84128]
[1726597160510,0.4231,2362.9,2362.8,0.4231]
[1726597160704,6.5078,2363.0,2362.8,0.4231]
[1726597160907,6.93089,2363.0,2362.9,0.4231]
[1726597161111,4.155,2364.1,2363.2,0.42304]
[1726597161112,3.2078,2363.6,2363.2,0.42304]
[1726597161318,3.2078,2363.6,2362.8,3.3]
[1726597161319,0.42305,2363.2,2363.1,0.42305]
[1726597161516,1.47349,2363.5,2362.9,1.05775]
[1726597161517,3.2078,2363.3,2362.9,1.05775]
[1726597161702,3.63083,2363.3,2363.2,0.42304]
[1726597161903,3.63083,2363.3,2362.8,8.53677]
[1726597161904,3.6006,2363.3,2362.8,8.53677]
[1726597162108,0.84545,2363.2,2363.1,0.42306]
[1726597162813,0.4224,2363.2,2363.1,0.42306]
[1726597164115,0.4224,2363.2,2362.8,4.179]
[1726597164420,3.6309,2363.0,2362.9,0.4231]
[1726597164610,3.6309,2363.0,2362.8,4.179]
[1726597164611,0.42311,2362.9,2362.8,0.4231]
[1726597164913,0.81591,2362.9,2362.8,0.4231]
[1726597165111,0.3928,2362.9,2362.8,0.4231]
[1726597166515,0.8159,2362.9,2362.8,0.4231]
[1726597167124,0.42313,2362.8,2362.7,0.42313]
[1726597168119,0.81591,2362.9,2362.8,0.42312]
[1726597168315,0.3928,2362.9,2362.8,0.42312]
[1726597168618,0.3917,2363.1,2363.0,0.42308]
[1726597169118,0.42309,2363.0,2362.9,0.42308]
[1726597169321,0.81477,2363.1,2363.0,0.42308]
[1726597172617,0.4231,2363.0,2362.9,0.42308]
[1726597172820,3.6309,2363.0,2362.9,0.42308]
[1726597173011,0.42311,2362.9,2362.8,0.4231]
[1726597173322,0.42313,2362.8,2362.7,0.42313]
[1726597173520,0.82363,2362.8,2362.7,0.42313]
[1726597173928,0.4005,2362.8,2362.7,0.42313]
[1726597174425,0.82362,2362.8,2362.7,0.42313]
[1726597174925,1.05771,2363.0,2362.6,0.7834]
[1726597175122,0.42311,2362.9,2362.8,0.42311]
[1726597175321,0.42312,2362.8,2362.7,0.42312]
[1726597175717,7.96091,2363.0,2362.6,0.7834]
[1726597175923,0.4231,2362.9,2362.8,0.42311]
[1726597177225,0.81849,2363.0,2362.9,0.4231]
[1726597181830,4.02629,2363.0,2362.9,0.4231]
[1726597182628,0.3954,2363.0,2362.9,0.4231]
[1726597183539,0.81477,2363.1,2363.0,0.42308]
[1726597184033,0.42309,2363.0,2362.9,0.42309]
[1726597184230,3.63089,2363.0,2362.9,0.42309]
[1726597184737,0.42312,2362.8,2362.7,0.42311]
[1726597185632,0.42312,2362.8,2362.5,1.05792]
[1726597185831,0.42312,2362.8,2362.7,0.42311]
[1726597186935,1.26472,2362.8,2362.7,0.42311]
[1726597187327,3.72316,2362.6,2362.4,0.42318]
[1726597187551,0.8416,2362.8,2362.1,3.2078]
[1726597187552,5.68505325,2362.7,2362.5,0.42316]
[1726597187732,1.64491325,2362.8,2362.6,4.35789]
[1726597187932,1.64491325,2363.1,2362.9,0.42309]
[1726597188236,1.64491325,2363.1,2362.4,10.52720551]
[1726597188445,2.06798325,2363.1,2362.9,0.42309]
[1726597188734,2.06798325,2363.1,2362.8,0.4231]
[1726597188735,5.27580325,2363.0,2362.8,0.4231]
[1726597189040,2.06799325,2363.0,2362.7,0.405]
[1726597189242,1.64491325,2363.0,2362.9,0.4231]
[1726597189539,1.64643062,2363.0,2362.9,0.4231]
[1726597189835,1.64643062,2363.1,2363.0,0.42308]
[1726597190140,3.03818543,2363.2,2363.1,0.42306]
[1726597191135,2.61514543,2363.2,2362.8,0.3733]
[1726597191343,2.61514543,2363.2,2363.1,0.42306]
[1726597191539,0.3883,2363.4,2363.1,4.37197136]
[1726597191540,3.84683527,2363.4,2363.1,4.37197136]
[1726597191838,1.64863092,2363.5,2363.3,3.2078]
[1726597192043,1.64863092,2363.5,2363.3,4.05792]
[1726597192241,1.64863092,2363.5,2363.3,3.6349]
[1726597192435,1.64863092,2363.4,2363.3,0.4271]
[1726597192636,1.64863092,2363.4,2363.3,0.85013]
[1726597192637,2.47813092,2363.4,2363.3,0.85013]
[1726597192943,2.47813092,2363.4,2363.2,0.4249]
[1726597193141,3.2078,2363.3,2363.0,0.4271]
[1726597193341,1.64982642,2363.1,2363.0,0.85017]
[1726597193843,2.19844543,2363.2,2363.1,0.42306]
[1726597193844,1.65018034,2363.2,2363.1,0.42306]
[1726597194032,2.19844543,2363.3,2363.2,0.42304]
[1726597194236,2.62524543,2363.4,2363.3,0.42303]
[1726597194441,2.19844543,2363.4,2363.3,0.42303]
[1726597194843,2.60424543,2363.5,2363.4,0.42301]
[1726597195346,3.14207376,2363.6,2363.4,0.42301]
[1726597196344,3.17295376,2363.6,2363.3,0.42302]
[1726597196537,2.20186868,2363.4,2363.3,0.42302]
[1726597196943,3.14207376,2363.5,2363.3,0.42302]
[1726597197144,2.74997376,2363.4,2363.3,0.42302]
[1726597198160,0.3921,2363.5,2363.4,0.42301]
[1726597199349,0.8151,2363.5,2363.3,0.42302]
[1726597199545,0.42301,2363.4,2363.3,0.42302]
[1726597199845,0.8151,2363.5,2363.4,0.42301]
[1726597200242,0.8151,2363.5,2362.9,0.4249]
[1726597200243,3.70125174,2363.5,2362.9,0.4249]
[1726597200447,3.70125174,2363.5,2362.6,7.56565]
[1726597200448,2.75367772,2363.1,2363.0,0.42308]
[1726597200634,4.26543,2363.2,2362.7,0.4189]
[1726597200840,0.42311,2362.9,2362.8,0.42312]
[1726597201045,3.2078,2362.9,2362.4,7.07525551]
[1726597201246,3.2078,2362.9,2362.7,0.42313]
[1726597201247,0.42313,2362.8,2362.7,0.42313]
[1726597201841,4.14815174,2363.0,2362.9,0.4231]
[1726597202045,2.75345568,2363.0,2362.9,7.56555]
[1726597202264,2.75345568,2363.1,2363.0,2.5385]
[1726597202447,2.75345568,2363.2,2363.1,1.48072]
[1726597202647,2.75345568,2363.3,2363.2,1.48066]
[1726597202847,3.72455174,2363.6,2363.2,7.56542]
[1726597202848,2.7534967,2363.4,2363.2,7.56542]
[1726597203049,1.65227689,2363.3,2363.2,4.26542]
[1726597203248,1.65227689,2363.3,2363.2,6.30045503]
[1726597203445,1.65227689,2363.3,2363.2,12.30045503]
[1726597204349,2.7534967,2363.3,2363.0,0.8138]
[1726597204545,2.7534967,2363.3,2363.0,4.53688]
[1726597204546,2.20141869,2363.1,2363.0,4.53688]
[1726597204750,2.20141869,2363.1,2363.0,4.14198]
[1726597205649,2.7534967,2363.3,2363.1,0.42306]
[1726597205650,2.20141869,2363.2,2363.1,0.42306]
[1726597205851,2.20141869,2363.2,2363.1,3.72306]
[1726597206050,2.20141869,2363.2,2363.1,0.42306]
[1726597206361,2.20141869,2363.2,2363.0,4.8524]
[1726597206554,2.20141869,2363.1,2363.0,0.4189]
[1726597206746,2.20141869,2363.1,2362.9,3.2078]
[1726597207050,2.20141869,2363.0,2362.8,0.42]
[1726597207450,2.7534967,2363.1,2362.6,3.2078]
[1726597207451,2.20141869,2362.9,2362.6,3.2078]
[1726597207657,1.65044515,2362.8,2362.7,0.55447043]
[1726597207853,1.65044515,2362.8,2362.7,0.55446988]
[1726597208251,2.60371869,2362.9,2362.6,3.6278]
[1726597208556,1.65035216,2362.7,2362.6,3.2078]
[1726597208745,2.20141869,2362.7,2362.6,3.2078]
[1726597209958,2.20141869,2362.7,2362.1,7.02145551]
[1726597209959,2.7534967,2362.7,2362.1,6.16925551]
[1726597210150,1.65058388,2362.4,2362.2,0.94664795]
[1726597210354,1.65058388,2362.4,2362.3,0.55454795]
[1726597210948,1.65058388,2362.4,2362.2,0.3921]
[1726597211159,1.65055809,2362.4,2362.2,6.3921]
[1726597211451,2.7534967,2362.6,2362.3,1.81531272]
[1726597211452,1.65055809,2362.6,2362.3,1.81531272]
[1726597211652,1.65055809,2362.6,2362.4,3.6095]
[1726597211855,1.65055809,2362.6,2362.4,4.16403241]
[1726597212154,1.65055809,2362.6,2362.4,3.6095]
[1726597212647,1.65055809,2362.6,2362.4,0.4017]
[1726597213061,1.65055809,2362.6,2362.5,0.5545304]
[1726597214857,1.65055809,2362.6,2362.4,3.6095]
[1726597215052,1.65055809,2362.6,2362.5,0.55452296]
[1726597215258,1.65055809,2362.7,2362.5,0.55452296]
[1726597215454,1.65055809,2362.7,2362.4,3.6095]
[1726597215765,1.65055809,2362.6,2362.5,0.55452622]
[1726597216164,1.65055809,2362.7,2362.5,6.55452622]
[1726597216463,2.61227851,2362.8,2362.4,3.6095]
[1726597216464,1.65055809,2362.6,2362.4,3.6095]
[1726597216658,1.65055809,2362.6,2362.5,0.5545271]
[1726597217159,1.65055809,2362.7,2362.5,6.5545271]
[1726597217360,1.65055809,2362.6,2362.4,3.6095]
[1726597217658,1.65055809,2362.6,2362.5,0.55452384]
[1726597217956,1.65055809,2362.6,2362.3,0.33778622]
[1726597217957,2.20077851,2362.6,2362.3,0.33778622]
[1726597218160,2.20077851,2362.6,2362.4,3.76234088]
[1726597218161,1.64980379,2362.5,2362.4,3.76234088]
[1726597218361,1.64980379,2362.5,2362.4,3.2078]
[1726597218665,1.64980379,2362.5,2362.4,4.31686671]
[1726597218854,1.64980379,2362.6,2362.4,4.31686671]
[1726597219051,1.64980379,2362.6,2362.5,0.5545213]
[1726597219553,1.64980379,2362.6,2362.5,0.4024]
[1726597220155,1.64980379,2362.6,2362.5,0.95692685]
[1726597220355,1.64980379,2362.6,2362.5,0.95692812]
[1726597220558,1.64980379,2362.6,2362.5,0.9569285]
[1726597220761,2.20077851,2362.6,2362.4,0.55453683]
[1726597220954,1.65051146,2362.5,2362.4,0.55453683]
[1726597221755,1.65051146,2362.5,2362.4,1.10907849]
[1726597221952,1.65051146,2362.5,2362.4,0.55453683]
[1726597222352,1.65051146,2362.5,2362.1,3.2078]
[1726597222353,11.78051146,2362.5,2362.1,3.2078]
[1726597222662,11.78051146,2362.5,2360.9,0.3381534]
[1726597222663,7.2678,2362.2,2360.9,0.3381534]
[1726597222857,3.84447325,2362.4,2360.8,3.42315009]
[1726597222858,1.09961362,2361.1,2360.8,3.42315009]
[1726597223059,1.09961362,2361.0,2360.8,3.2078]
[1726597223459,1.09961362,2361.1,2360.8,3.2078]
[1726597223964,1.09961362,2361.1,2360.6,0.4154]
[1726597223965,1.09961362,2361.0,2360.6,0.4154]
[1726597224158,1.64942043,2361.1,2360.5,3.2078]
[1726597224159,1.09961362,2361.1,2360.5,3.2078]
[1726597224356,1.09961362,2361.0,2360.1,3.2078]
[1726597224553,1.09961362,2361.0,2360.1,3.5986]
[1726597224754,1.09961362,2361.0,2360.4,3.2078]
[1726597224976,1.09961362,2361.0,2360.5,0.3956]
[1726597225267,3.2078,2360.6,2360.0,0.75785164]
[1726597225457,7.2678,2360.7,2360.0,3.74922205]
[1726597225659,3.2078,2360.3,2360.0,0.2]
[1726597225854,1.09961362,2360.2,2359.4,3.2078]
[1726597226062,1.09961362,2359.8,2359.3,0.00693694]
[1726597226270,1.09961362,2359.9,2359.6,7.2678]
[1726597226566,3.16433406,2360.5,2359.7,1.45477]
[1726597226567,1.51491362,2360.5,2359.7,1.45477]
[1726597226764,1.51491362,2360.5,2360.2,0.42357]
[1726597226765,3.2078,2360.3,2360.2,0.42357]
[1726597226958,1.51491362,2360.5,2360.4,0.42355]
[1726597227159,1.09961362,2360.7,2360.5,0.42353]
[1726597227361,4.30741362,2361.0,2360.7,0.42349]
[1726597227560,3.2078,2361.0,2360.6,0.4235]
[1726597227960,4.30741362,2361.0,2360.5,0.42351]
[1726597228163,3.2078,2360.7,2360.2,2.96145551]
[1726597228364,3.2078,2360.7,2360.5,0.42352]
[1726597228862,3.2078,2360.7,2360.6,0.42351]
[1726597229059,3.2078,2360.7,2360.5,0.42352]
[1726597229659,3.2078,2360.7,2360.3,0.42356]
[1726597229660,7.4438,2360.7,2360.3,0.42356]
[1726597229859,7.4438,2360.7,2359.9,7.2678]
[1726597229860,3.2078,2360.7,2359.9,3.5433558]
[1726597230062,3.2078,2360.7,2359.8,3.35225551]
[1726597230258,3.2078,2360.4,2359.8,6.16925551]
[1726597230463,3.2078,2360.4,2360.2,0.42357]
[1726597230766,3.2078,2360.4,2360.3,0.42356]
[1726597231272,3.2078,2360.4,2359.8,6.16925551]
[1726597231273,7.4446,2360.4,2360.2,0.42357]
[1726597231462,3.2078,2360.4,2360.3,0.42356]
[1726597231662,3.2078,2360.4,2360.2,0.42358]
[1726597231862,3.2078,2360.1,2359.3,0.00357604]
[1726597232063,8.32714,2359.4,2358.3,2.96145551]
[1726597232260,3.2078,2359.0,2358.8,3.2078]
[1726597232672,9.2078,2359.0,2358.0,3.5522281]
[1726597232863,9.2078,2359.0,2358.6,3.2078]
[1726597232864,3.2078,2359.0,2358.6,3.2078]
[1726597233063,3.2078,2359.0,2358.7,0.42385]
[1726597233261,3.2078,2359.0,2358.7,0.42383]
[1726597233464,3.2078,2359.0,2358.8,0.42382]
[1726597233659,3.2078,2359.0,2358.6,3.2078]
[1726597233871,3.2078,2359.0,2358.8,0.01384619]
[1726597234470,3.2078,2359.0,2358.8,0.43767619]
[1726597234673,3.2078,2359.0,2358.9,0.42382]
[1726597234975,3.2078,2359.0,2358.9,0.43766619]
[1726597235273,3.2078,2359.6,2358.9,3.22164619]
[1726597235479,3.2078,2359.6,2359.4,3.2078]
[1726597235977,3.2078,2359.6,2359.5,0.01384619]
[1726597237072,3.2078,2359.6,2359.5,3.64535619]
[1726597237272,4.06,2360.5,2359.5,3.64535619]
[1726597237273,3.2078,2360.2,2359.5,3.22164619]
[1726597237575,3.2078,2360.2,2360.0,3.2078]
[1726597237972,3.2078,2360.2,2360.1,0.01384619]
[1726597238164,3.63138,2360.2,2360.1,0.01384619]
[1726597238368,13.86818,2360.2,2360.1,0.01384619]
[1726597239177,0.42361,2360.1,2359.7,0.42366]
[1726597239377,3.2078,2360.1,2360.0,0.42361]
[1726597239676,3.2078,2360.1,2359.8,0.42365]
[1726597239874,3.2078,2360.1,2359.7,3.2078]
[1726597240080,3.2078,2360.1,2359.9,0.42363]
[1726597240281,3.6061,2360.4,2359.9,3.2078]
[1726597240482,3.2078,2360.3,2359.9,3.63143]
[1726597240683,3.2078,2360.0,2359.9,3.63142]
[1726597243388,3.63142,2360.0,2359.4,0.391]
[1726597243586,3.2078,2359.7,2359.5,3.6315]
[1726597244086,3.2078,2359.7,2359.6,0.42369]
[1726597244388,3.2078,2359.7,2359.5,0.4237]
[1726597244590,3.2078,2359.7,2359.6,0.42369]
[1726597246587,3.2078,2359.7,2359.6,3.63149]
[1726597249388,3.2078,2359.9,2359.8,0.42365]
[1726597249584,3.2078,2359.9,2359.3,1.05935]
[1726597249782,0.42366,2359.8,2359.6,3.63148]
[1726597249983,3.2078,2359.9,2359.7,0.42366]
[1726597250290,3.2078,2359.9,2359.8,0.42365]
[1726597250487,3.2078,2359.9,2359.8,3.63145]
[1726597250696,3.2078,2360.2,2360.1,0.42359]
[1726597250988,3.2078,2360.2,2360.0,0.42362]
[1726597251188,3.63138,2360.2,2360.0,0.42362]
[1726597251389,3.63139,2360.2,2360.0,0.42361]
[1726597251579,3.2078,2360.2,2360.1,0.4236]
[1726597252095,3.2078,2360.2,2359.7,1.05917]
[1726597252282,3.2078,2360.1,2359.9,3.2078]
[1726597252592,3.63141,2360.1,2359.9,3.63143]
[1726597252892,3.63141,2360.1,2360.0,0.42362]
[1726597253086,3.2078,2360.1,2360.0,0.42362]
[1726597253289,3.63141,2360.1,2359.9,0.42363]
[1726597253490,3.63141,2360.1,2360.0,0.42362]
[1726597254394,3.2078,2360.1,2360.0,0.42362]
[1726597254791,3.2078,2360.1,2359.5,1.67245551]
[1726597254792,0.42369,2359.6,2359.5,1.67245551]
[1726597254987,0.42374,2359.3,2359.2,0.42375]
[1726597255289,1.05941,2359.2,2359.0,0.4238]
[1726597255489,1.05941,2359.2,2358.9,3.2078]
[1726597255683,3.6316,2359.0,2358.9,3.63162]
[1726597255885,3.2078,2359.0,2358.9,0.42382]
[1726597256796,3.2078,2359.0,2358.9,3.63162]
[1726597256993,3.2078,2359.0,2358.9,4.69117]
[1726597258092,3.2078,2359.4,2359.0,1.05949]
[1726597258293,3.2078,2359.4,2359.3,3.63154]
[1726597260489,3.2078,2359.4,2359.3,4.69091]
[1726597261602,9.2078,2359.4,2358.4,5.3273]
[1726597261897,3.2078,2359.0,2358.9,0.42382]
[1726597262301,3.2078,2359.0,2358.9,3.63162]
[1726597262694,3.2078,2359.3,2359.2,0.42376]
[1726597263604,3.2078,2359.6,2359.5,0.42369]
[1726597263803,1.64942043,2360.2,2359.5,3.2078]
[1726597263804,3.5998,2360.2,2359.5,3.2078]
[1726597264099,1.89161362,2360.6,2359.4,4.06]
[1726597264100,3.2078,2360.5,2360.3,0.42356]
[1726597264296,3.2078,2360.5,2360.3,0.42355]
[1726597264504,3.2078,2360.5,2360.4,0.42355]
[1726597264704,0.392,2360.8,2360.7,0.42349]
[1726597264705,3.2078,2360.8,2360.7,0.42349]
[1726597264901,3.2078,2360.8,2360.7,3.63129]
[1726597265396,3.2078,2360.8,2360.2,0.3903]
[1726597265596,3.2078,2360.3,2360.0,0.7901]
[1726597265797,3.2078,2360.3,2360.2,0.42358]
[1726597265992,3.2078,2360.7,2360.2,3.2078]
[1726597266192,3.2078,2360.7,2360.4,3.2078]
[1726597266393,3.2078,2360.7,2360.6,3.63131]
[1726597267107,4.29879587,2360.7,2360.6,3.63131]
[1726597267401,3.2078,2360.7,2360.6,3.2078]
[1726597267594,5.40702724,2360.7,2360.6,3.2078]
[1726597267823,3.2078,2360.7,2360.6,3.2078]
[1726597267995,5.40702724,2360.7,2360.6,3.63131]
[1726597268196,3.2078,2360.7,2360.6,3.63131]
[1726597268397,5.95683406,2360.7,2360.6,3.63131]
[1726597269200,5.95683406,2360.7,2360.6,0.42351]
[1726597269404,3.2078,2360.7,2360.5,0.42352]
[1726597269709,2.73611429,2360.6,2360.5,3.63132]
[1726597270208,2.73611429,2360.6,2360.5,3.63133]
[1726597270407,3.2078,2360.7,2360.6,0.42351]
[1726597271004,3.6313,2360.7,2360.5,0.42352]
[1726597271205,3.2078,2360.7,2360.6,0.42351]
[1726597271410,3.2078,2360.7,2360.5,3.2078]
[1726597271411,3.6313,2360.7,2360.5,3.2078]
[1726597271712,3.63131,2360.7,2360.5,3.63132]
[1726597271917,3.63131,2360.7,2360.5,3.2078]
[1726597272212,3.6313,2360.7,2360.5,3.63132]
[1726597272400,3.6313,2360.7,2360.5,3.2078]
[1726597272599,3.6313,2360.7,2360.6,0.42351]
[1726597273616,3.6313,2360.7,2360.2,1.45435]
[1726597273826,3.2078,2360.6,2360.5,3.63131]
[1726597274518,3.63131,2360.6,2360.5,3.63131]
[1726597275013,3.63131,2360.6,2360.2,0.3954]
[1726597275014,4.84886348,2360.6,2360.2,0.3954]
[1726597275214,4.30171372,2360.3,2360.2,0.42357]
[1726597275514,4.30171372,2360.3,2360.2,1.48253]
[1726597275515,1.09391372,2360.3,2360.2,1.48253]
[1726597275818,1.09391372,2360.5,2360.4,1.48242]
[1726597276309,4.84867058,2360.6,2360.5,0.42353]
[1726597276511,4.84867058,2360.6,2360.5,3.63133]
[1726597276824,4.30182623,2360.6,2360.5,3.63133]
[1726597277115,4.84867058,2360.6,2360.5,3.63133]